bitfinex/quotes_BTCUSD_20251209
["timestamp","ask_amount","ask_price","bid_price","bid_amount"]
[1765268849762,0.00023718,90666.0,90665.0,0.0174]
[1765268849959,0.00023718,90666.0,90665.0,0.03267]
[1765268850171,0.00023718,90666.0,90665.0,0.05743]
[1765268851157,0.00023718,90666.0,90665.0,0.08110209]
[1765268851375,0.00023718,90666.0,90665.0,0.08410209]
[1765268851552,0.00023718,90666.0,90665.0,0.10709809]
[1765268853387,0.00023718,90666.0,90665.0,0.08503887]
[1765268853684,0.00023718,90666.0,90665.0,0.10709809]
[1765268856272,0.00023718,90666.0,90665.0,0.11151559]
[1765268859001,0.00023718,90666.0,90665.0,0.08945637]
[1765268859155,0.00023718,90666.0,90665.0,0.1486888]
[1765268860403,0.00023718,90666.0,90665.0,0.08945637]
[1765268862797,0.00023718,90666.0,90665.0,0.06746037]
[1765268863279,0.00023718,90666.0,90665.0,0.08951959]
[1765268863798,0.00023718,90666.0,90665.0,0.11151559]
[1765268864189,0.00023718,90666.0,90665.0,0.12340559]
[1765268871158,0.00023718,90666.0,90665.0,0.10134637]
[1765268871359,0.00023718,90666.0,90665.0,0.07935037]
[1765268875496,0.00023718,90666.0,90665.0,0.06195037]
[1765268875699,0.00023718,90666.0,90665.0,0.0214]
[1765268875914,0.00023718,90666.0,90665.0,0.08072745]
[1765268876606,0.00023718,90666.0,90665.0,0.07672745]
[1765268876754,0.00023718,90666.0,90665.0,0.07772745]
[1765268876955,0.00023718,90666.0,90665.0,0.07972745]
[1765268877996,0.00023718,90666.0,90665.0,0.11840745]
[1765268878431,0.00023718,90666.0,90665.0,0.05908]
[1765268881383,0.00023718,90666.0,90665.0,0.07059]
[1765268881588,0.00023718,90666.0,90665.0,0.04698]
[1765268882555,0.00023718,90666.0,90665.0,0.07041]
[1765268882767,0.00023718,90666.0,90665.0,0.04698]
[1765268883291,0.00023718,90666.0,90665.0,0.07041]
[1765268902466,0.00023718,90666.0,90665.0,0.04698]
[1765268903057,0.00023718,90666.0,90665.0,0.07041]
[1765268905719,0.00023718,90666.0,90665.0,0.07202287]
[1765268905918,0.00023718,90666.0,90665.0,0.17317005]
[1765268906428,0.00023718,90666.0,90665.0,0.07202287]
[1765268909951,0.00023718,90666.0,90665.0,0.09408209]
[1765268910453,0.00023718,90666.0,90665.0,0.07202287]
[1765268919004,0.00023718,90666.0,90665.0,0.07041]
[1765268919229,0.00023718,90666.0,90665.0,0.03191]
[1765268919419,0.22082703,90666.0,90665.0,0.03191]
[1765268919632,0.22082703,90666.0,90665.0,0.003]
[1765268919633,0.32790208,90666.0,90665.0,0.003]
[1765268919861,0.36034625,90666.0,90665.0,0.003]
[1765268920188,0.2887012,90666.0,90665.0,0.003]
[1765268921042,0.2887012,90666.0,90665.0,0.001]
[1765268921302,0.2666012,90666.0,90665.0,0.001]
[1765268921693,0.22060202,90661.0,90660.0,0.00199998]
[1765268922320,0.22060202,90661.0,90660.0,0.00099999]
[1765268922746,0.31416102,90661.0,90660.0,0.00099999]
[1765268923063,0.01102985,90663.0,90660.0,0.04322287]
[1765268923252,0.01102985,90663.0,90661.0,0.01237]
[1765268923401,0.01102961,90665.0,90661.0,0.01237]
[1765268923603,0.01102961,90665.0,90661.0,0.24400155]
[1765268923825,0.01102961,90665.0,90662.0,0.01102997]
[1765268924142,0.01102961,90665.0,90662.0,0.03582997]
[1765268924349,0.01126667,90666.0,90662.0,0.03582997]
[1765268924557,0.01126667,90666.0,90663.0,0.0248]
[1765268924986,0.00023718,90666.0,90662.0,0.01102997]
[1765268925621,0.00023718,90666.0,90663.0,0.01102985]
[1765268926998,0.01126667,90666.0,90663.0,0.01102985]
[1765268927175,0.01102961,90665.0,90662.0,0.01102997]
[1765268927414,0.01126667,90666.0,90663.0,0.231627]
[1765268927614,0.00023718,90666.0,90663.0,0.256427]
[1765268927849,0.00023718,90666.0,90665.0,0.01581]
[1765268929115,0.00023718,90666.0,90665.0,0.01781]
[1765268930319,0.00023718,90666.0,90665.0,0.26320229]
[1765268931107,0.00023718,90666.0,90665.0,0.26762031]
[1765268934323,0.00023718,90666.0,90665.0,0.27999031]
[1765268935296,0.00023718,90666.0,90665.0,0.28160318]
[1765268936237,0.00023718,90666.0,90665.0,0.3410068]
[1765268947320,0.00023718,90666.0,90665.0,0.28160318]
[1765268961464,0.00023718,90666.0,90665.0,0.06101089]
[1765268961668,0.2205892,90667.0,90665.0,0.02040089]
[1765268961872,0.03541,90666.0,90665.0,0.06585707]
[1765268962075,0.04575962,90666.0,90665.0,0.002]
[1765268962385,0.06785962,90666.0,90665.0,0.002]
[1765268963015,0.03312985,90663.0,90660.0,0.00199998]
[1765268963259,0.02567,90661.0,90660.0,0.00099999]
[1765268963736,0.04516,90661.0,90660.0,0.00099999]
[1765268964538,0.27611164,90661.0,90660.0,0.00099999]
[1765268964722,0.25662164,90661.0,90660.0,0.00099999]
[1765268965106,0.24627202,90661.0,90660.0,0.00099999]
[1765268965525,0.24627202,90661.0,90654.0,0.0174]
[1765268965526,0.01103058,90657.0,90654.0,0.0174]
[1765268965728,0.23164451,90657.0,90654.0,0.0174]
[1765268966928,0.23164451,90657.0,90654.0,0.0184]
[1765268969124,0.2206163,90656.0,90654.0,0.0184]
[1765268969330,0.22061662,90655.0,90654.0,0.0184]
[1765268969666,0.23036662,90655.0,90654.0,0.0184]
[1765268971212,0.23036662,90655.0,90654.0,0.0174]
[1765268971413,0.23036662,90655.0,90654.0,0.0194]
[1765268972366,0.24685662,90655.0,90654.0,0.0194]
[1765268972566,0.24685662,90655.0,90654.0,0.002]
[1765268972567,0.7169187,90655.0,90654.0,0.002]
[1765268973385,0.73174795,90655.0,90654.0,0.002]
[1765268973871,0.73474795,90655.0,90654.0,0.002]
[1765268974660,0.22063365,90648.0,90647.0,0.01482925]
[1765268974810,0.37802245,90648.0,90647.0,0.01482925]
[1765268975178,0.39751245,90648.0,90647.0,0.01482925]
[1765268975747,0.39749931,90648.0,90647.0,0.01482925]
[1765268976191,0.38919293,90648.0,90647.0,0.01472925]
[1765268976401,0.39119293,90648.0,90647.0,0.01472925]
[1765268980985,0.40148974,90648.0,90647.0,0.01472925]
[1765268982998,0.39119293,90648.0,90647.0,0.01472925]
[1765268983358,0.4014884,90648.0,90647.0,0.01472925]
[1765268990145,0.40149909,90648.0,90647.0,0.01472925]
[1765268994134,0.22067504,90631.0,90620.0,0.00159116]
[1765268994266,0.24693939,90621.0,90620.0,0.00159116]
[1765268994668,0.26642939,90621.0,90620.0,0.00159116]
[1765268994990,0.26642939,90621.0,90620.0,0.00144216]
[1765268995192,0.31955891,90621.0,90620.0,0.00244216]
[1765268995535,0.31955891,90621.0,90620.0,0.00344216]
[1765268996014,0.31955891,90621.0,90620.0,0.00144216]
[1765268996219,0.32055891,90621.0,90620.0,0.00144216]
[1765268996815,0.32055891,90621.0,90620.0,0.00344216]
[1765268997024,0.32055891,90621.0,90620.0,0.00144216]
[1765268997405,0.33087938,90621.0,90620.0,0.00144216]
[1765268999128,0.35297938,90621.0,90620.0,0.00144216]
[1765269001251,0.33087938,90621.0,90620.0,0.00144216]
[1765269001746,0.27774986,90621.0,90620.0,0.00144216]
[1765269005545,0.25825986,90621.0,90620.0,0.00144216]
[1765269005741,0.24176986,90621.0,90620.0,0.00144216]
[1765269006873,0.24076986,90621.0,90620.0,0.00144216]
[1765269008070,0.29882986,90621.0,90620.0,0.00144216]
[1765269008271,0.39712687,90621.0,90620.0,0.00144216]
[1765269009054,0.3971353,90621.0,90620.0,0.00144216]
[1765269010083,0.7201353,90621.0,90620.0,0.00144216]
[1765269010261,0.7211353,90621.0,90620.0,0.00144216]
[1765269010456,0.7211353,90621.0,90620.0,0.0010008]
[1765269010655,0.7221353,90621.0,90620.0,0.0010008]
[1765269011037,0.78465829,90621.0,90620.0,0.0010008]
[1765269011244,0.78365829,90621.0,90620.0,0.0010008]
[1765269012074,0.78565829,90621.0,90620.0,0.0010008]
[1765269012293,0.78465829,90621.0,90620.0,0.0010008]
[1765269012509,0.78665829,90621.0,90620.0,0.0010008]
[1765269013350,0.78465829,90621.0,90620.0,0.0010008]
[1765269013799,0.78665829,90621.0,90620.0,0.0010008]
[1765269014423,0.0221,90591.0,90590.0,0.00099999]
[1765269014653,0.0221,90591.0,90575.0,0.02332057]
[1765269014654,0.22081879,90572.0,90571.0,0.07683905]
[1765269014823,0.22081879,90572.0,90571.0,0.0174]
[1765269015030,0.22081879,90572.0,90570.0,0.0004]
[1765269015171,0.03596,90571.0,90570.0,0.0004]
[1765269015397,0.03596,90571.0,90570.0,0.00051586]
[1765269015596,0.06837428,90571.0,90570.0,0.00051586]
[1765269016023,0.39137428,90571.0,90570.0,0.00051586]
[1765269016488,0.45389727,90571.0,90570.0,0.00051586]
[1765269016695,0.45389727,90571.0,90560.0,0.0004]
[1765269016696,0.55384017,90561.0,90560.0,0.0004]
[1765269016898,0.55384017,90561.0,90550.0,0.0004]
[1765269016899,0.24297,90551.0,90550.0,0.0004]
[1765269017105,0.63943428,90551.0,90550.0,0.0004]
[1765269017324,0.23088896,90541.0,90540.0,0.0004]
[1765269017524,0.25767324,90541.0,90540.0,0.0004]
[1765269017654,0.27716324,90541.0,90540.0,0.0004]
[1765269018259,0.58984896,90541.0,90540.0,0.0004]
[1765269018464,0.60011511,90541.0,90540.0,0.0004]
[1765269018668,0.68442415,90541.0,90540.0,0.0004]
[1765269019092,0.68442415,90541.0,90540.0,0.0014]
[1765269019293,0.68442415,90541.0,90540.0,0.0004]
[1765269019294,0.74694714,90541.0,90540.0,0.0004]
[1765269019499,0.74694714,90541.0,90530.0,0.0004]
[1765269019500,0.5660188,90531.0,90530.0,0.0004]
[1765269019766,0.68548243,90531.0,90530.0,0.0004]
[1765269019928,0.70497243,90531.0,90530.0,0.0004]
[1765269020915,0.70697243,90531.0,90530.0,0.0004]
[1765269021125,0.70497243,90531.0,90530.0,0.0004]
[1765269021329,0.70497243,90531.0,90530.0,0.00307312]
[1765269021792,0.70597243,90531.0,90530.0,0.00307312]
[1765269021996,0.6039788,90531.0,90530.0,0.00307312]
[1765269022323,0.6059788,90531.0,90530.0,0.00307312]
[1765269023803,0.6039788,90531.0,90530.0,0.00307312]
[1765269024121,0.6059788,90531.0,90530.0,0.00307312]
[1765269024358,0.6039788,90531.0,90530.0,0.00307312]
[1765269024741,0.6049788,90531.0,90530.0,0.00307312]
[1765269025787,0.06106,90531.0,90530.0,0.00307312]
[1765269025943,0.003,90531.0,90530.0,0.00307312]
[1765269026730,0.001,90531.0,90530.0,0.00307312]
[1765269027142,0.001,90531.0,90530.0,0.00407312]
[1765269027340,0.23196014,90533.0,90530.0,0.00407312]
[1765269027568,0.24743586,90533.0,90530.0,0.0014]
[1765269027778,0.24743586,90533.0,90530.0,0.0044]
[1765269028439,0.24743586,90533.0,90530.0,0.0034]
[1765269028625,0.24743586,90533.0,90530.0,0.0014]
[1765269028763,0.24743586,90533.0,90530.0,0.0044]
[1765269029184,0.06076036,90532.0,90530.0,0.0044]
[1765269029386,0.01104569,90533.0,90530.0,0.00601287]
[1765269029584,0.23195992,90533.0,90530.0,0.00601287]
[1765269030098,0.23195992,90533.0,90530.0,0.00501287]
[1765269030524,0.23195992,90533.0,90530.0,0.00301287]
[1765269030754,0.01104496,90539.0,90534.0,0.01104557]
[1765269030979,0.01104508,90538.0,90535.0,0.01104545]
[1765269032015,0.01104496,90539.0,90535.0,0.01265832]
[1765269032221,0.2319468,90538.0,90535.0,0.00161287]
[1765269032399,0.01104496,90539.0,90535.0,0.22252148]
[1765269032602,0.23194433,90539.0,90535.0,0.22252148]
[1765269033129,0.01104508,90538.0,90535.0,0.01265832]
[1765269033511,0.01104508,90538.0,90535.0,0.01465832]
[1765269033723,0.01104484,90540.0,90537.0,0.0388652]
[1765269033939,0.01104484,90540.0,90537.0,0.01147]
[1765269034361,0.01104484,90540.0,90535.0,0.00361287]
[1765269034362,0.2319468,90538.0,90535.0,0.00361287]
[1765269034535,0.2372566,90536.0,90535.0,0.00161287]
[1765269034866,0.2372566,90536.0,90535.0,0.00361287]
[1765269035070,0.2372566,90536.0,90535.0,0.00161287]
[1765269035218,0.2209066,90536.0,90535.0,0.00161287]
[1765269036864,0.2209066,90536.0,90535.0,0.00372856]
[1765269038091,0.22090648,90537.0,90535.0,0.00372856]
[1765269039557,0.22090648,90537.0,90535.0,0.00172856]
[1765269039946,0.22090648,90537.0,90536.0,0.00249475]
[1765269040929,0.22090416,90537.0,90536.0,0.00249475]
[1765269041501,0.23118561,90537.0,90536.0,0.00449475]
[1765269046249,0.32133112,90537.0,90536.0,0.00449475]
[1765269046900,0.24753561,90537.0,90536.0,0.00449475]
[1765269047536,0.23118561,90537.0,90536.0,0.00449475]
[1765269048765,0.01028145,90537.0,90536.0,0.04721762]
[1765269048969,0.23190008,90557.0,90536.0,0.0572158]
[1765269049113,0.01104203,90563.0,90560.0,0.01304238]
[1765269049311,0.00975,90567.0,90560.0,0.01304238]
[1765269049312,0.0103338,90562.0,90561.0,0.27408789]
[1765269049559,0.0103338,90562.0,90561.0,0.29205076]
[1765269049903,0.0103338,90562.0,90561.0,0.07120515]
[1765269050131,0.0103338,90562.0,90561.0,0.01635]
[1765269050330,0.0103338,90562.0,90561.0,0.01744]
[1765269050778,0.0103338,90562.0,90561.0,0.02144]
[1765269051139,0.06092525,90562.0,90561.0,0.02144]
[1765269051374,0.06092525,90562.0,90561.0,0.02244]
[1765269052008,0.06092525,90562.0,90561.0,0.01844]
[1765269052293,0.06092525,90562.0,90561.0,0.02044]
[1765269052437,0.0103338,90562.0,90561.0,0.01944]
[1765269054227,0.0103338,90562.0,90561.0,0.29447848]
[1765269054451,0.0103338,90562.0,90561.0,0.07363287]
[1765269054816,0.0103338,90562.0,90561.0,0.02280465]
[1765269056324,0.0267238,90562.0,90561.0,0.02119178]
[1765269056489,0.10630229,90562.0,90561.0,0.02119178]
[1765269056689,0.12840229,90562.0,90561.0,0.02119178]
[1765269057461,0.0488238,90562.0,90561.0,0.02119178]
[1765269057882,0.0683138,90562.0,90561.0,0.02119178]
[1765269058589,0.0488238,90562.0,90561.0,0.02119178]
[1765269058792,0.0267238,90562.0,90561.0,0.02119178]
[1765269058999,0.0488238,90562.0,90561.0,0.02119178]
[1765269059407,0.14789229,90562.0,90561.0,0.00375178]
[1765269061521,0.12840229,90562.0,90561.0,0.00175178]
[1765269062028,0.12840229,90562.0,90561.0,0.00275178]
[1765269062433,0.10630229,90562.0,90561.0,0.00275178]
[1765269062837,0.0267238,90562.0,90561.0,0.00275178]
[1765269063489,0.0683138,90562.0,90561.0,0.00275178]
[1765269064025,0.0267238,90562.0,90561.0,0.00275178]
[1765269064162,0.0103338,90562.0,90561.0,0.00275178]
[1765269064349,0.0324338,90562.0,90561.0,0.00275178]
[1765269064559,0.01104142,90568.0,90563.0,0.01104203]
[1765269064766,0.0110413,90569.0,90566.0,0.015]
[1765269065030,0.0110413,90569.0,90567.0,0.0264]
[1765269065261,0.0110413,90569.0,90566.0,0.02506287]
[1765269065262,0.22082854,90568.0,90566.0,0.00161287]
[1765269065859,0.22082854,90568.0,90566.0,0.00170315]
[1765269066060,0.0110413,90569.0,90566.0,0.00170315]
[1765269066411,0.0110413,90569.0,90566.0,0.01274482]
[1765269066630,0.001,90567.0,90566.0,0.01574482]
[1765269066966,0.02135721,90573.0,90569.0,0.23186735]
[1765269067159,0.01104045,90576.0,90572.0,0.015]
[1765269067356,0.01104045,90576.0,90573.0,0.03845]
[1765269067562,0.01104045,90576.0,90575.0,0.015]
[1765269067799,0.0110402,90578.0,90575.0,0.03845]
[1765269068002,0.02135629,90578.0,90577.0,0.0114]
[1765269068433,0.0110402,90578.0,90577.0,0.0114]
[1765269069732,0.22081635,90573.0,90572.0,0.00161287]
[1765269069881,0.22081635,90573.0,90572.0,0.02506287]
[1765269070078,0.22081635,90573.0,90572.0,0.04006287]
[1765269070342,0.22081635,90573.0,90572.0,0.04148787]
[1765269071250,0.29037117,90573.0,90572.0,0.04148787]
[1765269071709,0.29037117,90573.0,90572.0,0.00403787]
[1765269072127,0.29037117,90573.0,90572.0,0.00603787]
[1765269073183,0.29037117,90573.0,90572.0,0.004425]
[1765269073580,0.29037117,90573.0,90572.0,0.021865]
[1765269074080,0.32541117,90573.0,90572.0,0.004425]
[1765269074255,0.34751117,90573.0,90572.0,0.021865]
[1765269074595,0.32541117,90573.0,90572.0,0.021865]
[1765269074893,0.32541117,90573.0,90572.0,0.018865]
[1765269075072,0.30592117,90573.0,90572.0,0.018865]
[1765269075449,0.30532339,90573.0,90572.0,0.018865]
[1765269075643,0.23576857,90573.0,90572.0,0.018865]
[1765269075847,0.22021857,90573.0,90572.0,0.018865]
[1765269076268,0.22021857,90573.0,90572.0,0.001425]
[1765269077578,0.27735857,90573.0,90572.0,0.001425]
[1765269078002,0.35354261,90573.0,90572.0,0.001425]
[1765269078219,0.36387408,90573.0,90572.0,0.001425]
[1765269078419,0.28769004,90573.0,90572.0,0.002425]
[1765269078821,0.24610004,90573.0,90572.0,0.002425]
[1765269079324,0.24610004,90573.0,90572.0,0.001425]
[1765269079790,0.26559004,90573.0,90572.0,0.001425]
[1765269079986,0.28769004,90573.0,90572.0,0.001425]
[1765269080195,0.68790723,90573.0,90572.0,0.001425]
[1765269081079,0.68890723,90573.0,90572.0,0.001425]
[1765269081362,0.69090723,90573.0,90572.0,0.001425]
[1765269083106,0.69090723,90573.0,90572.0,0.04148787]
[1765269083107,0.01333147,90573.0,90572.0,0.04148787]
[1765269083333,0.01333147,90573.0,90572.0,0.05892787]
[1765269083334,0.003,90573.0,90572.0,0.05892787]
[1765269084050,0.002,90573.0,90572.0,0.05892787]
[1765269085278,0.002,90573.0,90572.0,0.05992787]
[1765269085563,0.01103959,90583.0,90579.0,0.01104008]
[1765269085768,0.23183162,90583.0,90579.0,0.01104008]
[1765269085922,0.23183619,90582.0,90577.0,0.01104033]
[1765269086123,0.01103996,90580.0,90577.0,0.01104033]
[1765269086324,0.01103984,90581.0,90578.0,0.22080416]
[1765269086642,0.01103984,90581.0,90578.0,0.0110402]
[1765269087003,0.01103972,90582.0,90578.0,0.0110402]
[1765269087214,0.01103972,90582.0,90576.0,0.01104045]
[1765269087215,0.23183888,90581.0,90576.0,0.01104045]
[1765269087426,0.2318343,90582.0,90578.0,0.0110402]
[1765269088003,0.01103984,90581.0,90577.0,0.01104033]
[1765269088216,0.0110402,90578.0,90575.0,0.01104057]
[1765269088461,0.01103996,90580.0,90577.0,0.01104033]
[1765269089098,0.01103984,90581.0,90578.0,0.23184436]
[1765269089513,0.01103984,90581.0,90578.0,0.0110402]
[1765269089726,0.01103984,90581.0,90577.0,0.001]
[1765269089727,0.01103996,90580.0,90577.0,0.001]
[1765269089911,0.01103996,90580.0,90576.0,0.01104045]
[1765269090042,0.01104033,90577.0,90574.0,0.01104069]
[1765269090250,0.02429566,90579.0,90576.0,0.01104045]
[1765269090865,0.2561386,90579.0,90574.0,0.01104069]
[1765269091093,0.03533574,90579.0,90573.0,0.01104081]
[1765269091570,0.01104033,90577.0,90573.0,0.01104081]
[1765269091913,0.01104033,90577.0,90574.0,0.01104069]
[1765269092233,0.05321568,90577.0,90576.0,0.01104045]
[1765269092732,0.05321568,90577.0,90575.0,0.01104057]
[1765269092932,0.06425601,90577.0,90573.0,0.01104081]
[1765269093138,0.00975,90575.0,90572.0,0.01905287]
[1765269093381,0.00975,90575.0,90573.0,0.22081635]
[1765269093564,0.00975,90575.0,90574.0,0.001]
[1765269094774,0.00975,90575.0,90573.0,0.22081635]
[1765269094946,0.00975,90575.0,90573.0,0.22181635]
[1765269095404,0.00975,90575.0,90573.0,0.22081635]
[1765269095684,0.00975,90575.0,90574.0,0.003]
[1765269095907,0.00975,90575.0,90574.0,0.001]
[1765269096109,0.00975,90575.0,90573.0,0.22081635]
[1765269096261,0.00975,90575.0,90573.0,0.22381635]
[1765269096468,0.00975,90575.0,90574.0,0.0013656]
[1765269096820,0.00975,90575.0,90574.0,0.0033656]
[1765269097798,0.00975,90575.0,90574.0,0.0043656]
[1765269098001,0.00975,90575.0,90574.0,0.0023656]
[1765269098889,0.00975,90575.0,90574.0,0.0043656]
[1765269100842,0.00975,90575.0,90574.0,0.0040296]
[1765269103604,0.02537,90575.0,90574.0,0.0040296]
[1765269103850,0.02537,90575.0,90574.0,0.0214696]
[1765269104051,0.10161941,90575.0,90574.0,0.0214696]
[1765269104229,0.14320941,90575.0,90574.0,0.0040296]
[1765269104443,0.03570733,90575.0,90574.0,0.0040296]
[1765269104818,0.2318477,90577.0,90574.0,0.0402796]
[1765269105017,0.001,90575.0,90574.0,0.01642]
[1765269105226,0.01204057,90575.0,90571.0,0.23186016]
[1765269105518,0.01104057,90575.0,90571.0,0.23186016]
[1765269105668,0.01104033,90577.0,90574.0,0.02846069]
[1765269105866,0.01104008,90579.0,90576.0,0.01642]
[1765269106070,0.01104008,90579.0,90576.0,0.03925]
[1765269106265,0.23184392,90579.0,90576.0,0.03925]
[1765269106912,0.23184635,90578.0,90575.0,0.01744]
[1765269107142,0.24159635,90578.0,90575.0,0.01744]
[1765269108151,0.03772,90576.0,90575.0,0.01744]
[1765269108342,0.24293098,90567.0,90566.0,9.028e-05]
[1765269108518,0.25855098,90567.0,90566.0,9.028e-05]
[1765269108718,0.27804098,90567.0,90566.0,9.028e-05]
[1765269109426,0.36392967,90567.0,90566.0,9.028e-05]
[1765269109844,0.34182967,90567.0,90566.0,9.028e-05]
[1765269110634,0.34282967,90567.0,90566.0,9.028e-05]
[1765269111010,0.36492967,90567.0,90566.0,9.028e-05]
[1765269111335,0.37526994,90567.0,90566.0,9.028e-05]
[1765269112961,0.35316994,90567.0,90566.0,9.028e-05]
[1765269115431,0.37526994,90567.0,90566.0,9.028e-05]
[1765269115614,0.37526994,90567.0,90566.0,0.0013575]
[1765269116353,0.34282967,90567.0,90566.0,0.0013575]
[1765269117461,0.35316836,90567.0,90566.0,0.0013575]
[1765269117664,0.37526836,90567.0,90566.0,0.0013575]
[1765269119072,0.69826836,90567.0,90566.0,0.0013575]
[1765269126993,0.61237967,90567.0,90566.0,0.0013575]
[1765269129661,0.61182847,90567.0,90566.0,0.0013575]
[1765269132175,0.61181885,90567.0,90566.0,0.0013575]
[1765269135381,0.0221,90541.0,90540.0,0.00099999]
[1765269135584,0.0110452,90537.0,90531.0,0.04083594]
[1765269135830,0.0110452,90537.0,90533.0,0.23195788]
[1765269136062,0.01104472,90541.0,90538.0,0.01104508]
[1765269136385,0.02079459,90542.0,90539.0,0.01104496]
[1765269136998,0.01104411,90546.0,90542.0,0.01104459]
[1765269137196,0.23192887,90545.0,90542.0,0.01104459]
[1765269137420,0.23193399,90543.0,90540.0,0.01204483]
[1765269137623,0.01104459,90542.0,90539.0,0.01396287]
[1765269137819,0.01104435,90544.0,90539.0,0.01396287]
[1765269138022,0.01104459,90542.0,90539.0,0.01396287]
[1765269138435,0.01104459,90542.0,90539.0,0.02500783]
[1765269138843,0.01104447,90543.0,90540.0,0.01104484]
[1765269139597,0.23193439,90543.0,90540.0,0.01104484]
[1765269140022,0.01104459,90542.0,90539.0,0.02600783]
[1765269140398,0.01104435,90544.0,90540.0,0.03380484]
[1765269140608,0.01104435,90544.0,90541.0,0.01104472]
[1765269140816,0.01104447,90543.0,90540.0,0.01104484]
[1765269141542,0.01104459,90542.0,90539.0,0.01396287]
[1765269142030,0.01104459,90542.0,90541.0,0.00074267]
[1765269142235,0.23193825,90542.0,90541.0,0.00074267]
[1765269143070,0.01104423,90545.0,90542.0,0.01104459]
[1765269143299,0.01104411,90546.0,90542.0,0.23193461]
[1765269143516,0.01104423,90545.0,90541.0,0.02537287]
[1765269143767,0.22089178,90543.0,90541.0,0.00261287]
[1765269143962,0.22089178,90543.0,90541.0,0.00161287]
[1765269144092,0.0151,90542.0,90541.0,0.00261287]
[1765269144518,0.01104533,90536.0,90532.0,0.01104581]
[1765269144720,0.23195246,90536.0,90532.0,0.01265868]
[1765269144920,0.27945014,90535.0,90532.0,0.00161287]
[1765269145119,0.22091389,90534.0,90532.0,0.00161287]
[1765269145521,0.27945014,90535.0,90532.0,0.00161287]
[1765269145728,0.04749364,90535.0,90532.0,0.23457499]
[1765269145932,0.04749364,90535.0,90533.0,0.22091175]
[1765269146136,0.04749364,90535.0,90532.0,0.23457499]
[1765269146137,0.01104545,90535.0,90532.0,0.00261287]
[1765269146365,0.00975,90536.0,90533.0,0.22091392]
[1765269147085,0.02079533,90536.0,90533.0,0.01404569]
[1765269147336,0.02079533,90536.0,90533.0,0.01104569]
[1765269147658,0.22090904,90535.0,90533.0,0.003]
[1765269148033,0.22090904,90535.0,90533.0,0.004]
[1765269148403,0.07166444,90534.0,90533.0,0.004]
[1765269148610,0.08795444,90534.0,90533.0,0.003]
[1765269148823,0.22091392,90533.0,90531.0,0.01782765]
[1765269149235,0.22091392,90533.0,90532.0,0.00101013]
[1765269150477,0.22091392,90533.0,90532.0,0.00301013]
[1765269150672,0.32709975,90533.0,90532.0,0.00401013]
[1765269150872,0.32709975,90533.0,90532.0,0.00201013]
[1765269151312,0.34338975,90533.0,90532.0,0.00201013]
[1765269152058,0.34338975,90533.0,90532.0,0.00401013]
[1765269153421,0.22091392,90533.0,90532.0,0.00401013]
[1765269154063,0.02079533,90536.0,90533.0,0.23195961]
[1765269154545,0.00975,90536.0,90535.0,0.00092097]
[1765269155925,0.00975,90536.0,90535.0,0.22183001]
[1765269156123,0.00975,90536.0,90535.0,0.22283001]
[1765269156369,0.00975,90536.0,90535.0,0.00192097]
[1765269156782,0.00975,90536.0,90535.0,0.22283001]
[1765269156983,0.00975,90536.0,90535.0,0.00192097]
[1765269157195,0.2306566,90536.0,90535.0,0.00192097]
[1765269157969,0.00975,90536.0,90535.0,0.22283001]
[1765269158169,0.00975,90536.0,90535.0,0.00192097]
[1765269163128,0.08336258,90536.0,90535.0,0.00192097]
[1765269163361,0.09965258,90536.0,90535.0,0.00192097]
[1765269163572,0.14124258,90536.0,90535.0,0.00192097]
[1765269165160,0.36214918,90536.0,90535.0,0.00192097]
[1765269165897,0.34265918,90536.0,90535.0,0.00192097]
[1765269167140,0.32055918,90536.0,90535.0,0.00192097]
[1765269167345,0.01949,90540.0,90535.0,0.00192097]
[1765269167346,0.00975,90564.0,90548.0,0.22087513]
[1765269167540,0.01104289,90556.0,90553.0,0.01104325]
[1765269167707,0.01104276,90557.0,90553.0,0.01104325]
[1765269167708,0.01035732,90557.0,90555.0,0.23190112]
[1765269167931,0.02139972,90560.0,90556.0,0.23189864]
[1765269168140,0.22084074,90563.0,90556.0,0.23189864]
[1765269168141,0.01035732,90562.0,90559.0,0.01104252]
[1765269168442,0.01035732,90562.0,90557.0,0.01104276]
[1765269168443,0.01104228,90561.0,90557.0,0.01104276]
[1765269168702,0.22083585,90566.0,90555.0,0.01265588]
[1765269168703,0.01104045,90576.0,90570.0,0.01204117]
[1765269168873,0.00975,90588.0,90575.0,0.02712]
[1765269168874,0.01104033,90577.0,90575.0,0.02712]
[1765269169048,0.01034989,90577.0,90575.0,0.03816057]
[1765269169249,0.0110402,90578.0,90575.0,0.03816057]
[1765269169434,0.0110402,90578.0,90575.0,0.02712]
[1765269170383,0.0110402,90578.0,90575.0,0.03816057]
[1765269170592,0.01103935,90585.0,90580.0,0.00199998]
[1765269170749,0.02136856,90585.0,90580.0,0.00099999]
[1765269170948,0.01032921,90585.0,90582.0,0.23183413]
[1765269171174,0.01103935,90585.0,90582.0,0.02367]
[1765269171372,0.01103947,90584.0,90580.0,0.01303994]
[1765269171572,0.23182915,90584.0,90581.0,0.02367]
[1765269171887,0.01103959,90583.0,90580.0,0.00099999]
[1765269172070,0.22079441,90582.0,90580.0,0.00099999]
[1765269172483,0.01103959,90583.0,90580.0,0.00099999]
[1765269172887,0.01103947,90584.0,90580.0,0.25650877]
[1765269173209,0.01103947,90584.0,90581.0,0.01103984]
[1765269174684,0.01103947,90584.0,90583.0,0.0156]
[1765269174885,0.01103947,90584.0,90581.0,0.01203984]
[1765269175282,0.01103947,90584.0,90581.0,0.001]
[1765269175523,0.01103947,90584.0,90581.0,0.01203984]
[1765269175901,0.23183018,90584.0,90581.0,0.001]
[1765269176703,0.01103947,90584.0,90581.0,0.001]
[1765269177103,0.23182951,90584.0,90581.0,0.001]
[1765269177487,0.23182951,90584.0,90581.0,0.01342]
[1765269178691,0.22079407,90583.0,90581.0,0.001]
[1765269178886,0.31449941,90583.0,90581.0,0.001]
[1765269179337,0.03744,90582.0,90581.0,0.001]
[1765269179637,0.05693,90582.0,90581.0,0.001]
[1765269179942,0.03744,90582.0,90581.0,0.001]
[1765269180326,0.03744,90582.0,90581.0,0.002]
[1765269180534,0.10203115,90582.0,90581.0,0.001]
[1765269180936,0.01104057,90575.0,90572.0,0.01242]
[1765269182105,0.23185301,90575.0,90572.0,0.01242]
[1765269183153,0.23185301,90575.0,90565.0,0.22083438]
[1765269183154,0.22083078,90568.0,90563.0,0.01243]
[1765269183400,0.22083078,90568.0,90560.0,0.00099999]
[1765269183401,0.04182538,90567.0,90560.0,0.00099999]
[1765269183607,0.02539538,90567.0,90562.0,0.01744]
[1765269183832,0.01104142,90568.0,90564.0,0.01104191]
[1765269184229,0.01104118,90570.0,90567.0,0.03861154]
[1765269184529,0.23186292,90571.0,90568.0,0.02489]